bitfinex/quotes_BTCUSD_20251012
["timestamp","ask_amount","ask_price","bid_price","bid_amount"]
[1760311208255,1.13065357,115010.0,115000.0,3.03712214]
[1760311208478,1.12610951,115010.0,115000.0,3.03712214]
[1760311209024,0.502,115010.0,115000.0,3.22795518]
[1760311209376,0.502,115010.0,115000.0,3.3174847]
[1760311210169,0.5,115010.0,115000.0,3.3174847]
[1760311210363,0.501,115010.0,115000.0,3.3174847]
[1760311210589,0.502,115010.0,115000.0,3.3174847]
[1760311211019,0.502,115010.0,115000.0,3.40620404]
[1760311211853,0.67589792,115010.0,115000.0,3.40620404]
[1760311212213,0.502,115010.0,115000.0,3.40620404]
[1760311213445,0.50654349,115010.0,115000.0,3.40620404]
[1760311215486,0.68044141,115010.0,115000.0,3.05404214]
[1760311217936,1.05915141,115010.0,115000.0,3.03712214]
[1760311218109,1.14441141,115010.0,115000.0,3.01005214]
[1760311218314,1.08652141,115010.0,115000.0,3.04457214]
[1760311219096,1.02044141,115010.0,115000.0,3.04457214]
[1760311219307,1.02044141,115010.0,115000.0,3.15486148]
[1760311219747,0.50654349,115010.0,115000.0,3.41830404]
[1760311221154,0.50554349,115010.0,115000.0,3.41830404]
[1760311221588,0.50454349,115010.0,115000.0,3.41830404]
[1760311225346,0.50454349,115010.0,115000.0,3.81830404]
[1760311225521,0.50454349,115010.0,115000.0,3.84330403]
[1760311227095,0.50454349,115010.0,115000.0,3.87394403]
[1760311227671,0.50454349,115010.0,115000.0,3.87494403]
[1760311228024,0.50454349,115010.0,115000.0,3.97594403]
[1760311231968,0.50454349,115010.0,115000.0,4.42224403]
[1760311232938,0.50454349,115010.0,115000.0,3.97594403]
[1760311234023,0.50454349,115010.0,115000.0,3.87594403]
[1760311234241,0.50454349,115010.0,115000.0,3.97594403]
[1760311235142,0.50454349,115010.0,115000.0,3.87594403]
[1760311235435,0.50454349,115010.0,115000.0,3.97594403]
[1760311236426,0.50454349,115010.0,115000.0,3.87594403]
[1760311236624,0.50454349,115010.0,115000.0,3.97594403]
[1760311238362,0.50454349,115010.0,115000.0,3.87594403]
[1760311238554,0.50454349,115010.0,115000.0,3.97594403]
[1760311239414,0.50454349,115010.0,115000.0,3.87594403]
[1760311239542,0.50454349,115010.0,115000.0,3.97594403]
[1760311241744,0.50454349,115010.0,115000.0,3.87594403]
[1760311241960,0.50454349,115010.0,115000.0,3.97594403]
[1760311243975,0.50454349,115010.0,115000.0,3.87594403]
[1760311244400,0.50454349,115010.0,115000.0,3.97594403]
[1760311248267,0.50454349,115010.0,115000.0,3.87594403]
[1760311250113,0.00454349,115010.0,115000.0,3.87594403]
[1760311250974,0.00454349,115010.0,115000.0,4.63390403]
[1760311258288,0.00454349,115010.0,115000.0,3.91770403]
[1760311258739,0.00454349,115010.0,115000.0,4.18760403]
[1760311259356,0.00454349,115010.0,115000.0,3.91770403]
[1760311259996,0.00454349,115010.0,115000.0,4.35355536]
[1760311260181,1e-08,115010.0,115000.0,4.35355536]
[1760311260543,0.00454005,115050.0,115040.0,0.17385257]
[1760311260771,0.2430748,115070.0,115050.0,0.17382479]
[1760311260966,0.51834778,115070.0,115060.0,0.05082]
[1760311261511,0.52288941,115070.0,115060.0,0.05082]
[1760311262943,0.52388941,115070.0,115060.0,0.05082]
[1760311263123,0.52488941,115070.0,115060.0,0.05082]
[1760311263321,0.52488941,115070.0,115060.0,0.08075665]
[1760311264031,0.52488941,115070.0,115060.0,0.06120665]
[1760311264412,0.52488941,115070.0,115060.0,0.08075665]
[1760311265812,0.52488941,115070.0,115060.0,0.35065665]
[1760311268935,0.00654163,115070.0,115060.0,0.34410852]
[1760311269986,0.00554163,115070.0,115060.0,0.34410852]
[1760311270185,0.00454163,115070.0,115060.0,0.34410852]
[1760311270566,0.00554163,115070.0,115060.0,0.34410852]
[1760311270771,0.00554163,115070.0,115060.0,0.74410852]
[1760311270970,0.00454163,115070.0,115060.0,0.74410852]
[1760311272892,0.17834887,115070.0,115060.0,0.74410852]
[1760311273115,0.17834887,115070.0,115060.0,0.06120665]
[1760311273116,0.21825887,115070.0,115060.0,0.06120665]
[1760311273288,0.21825887,115070.0,115060.0,0.03127]
[1760311273490,0.17834887,115070.0,115060.0,0.03127]
[1760311273918,0.17834887,115070.0,115060.0,0.05082]
[1760311275183,0.17834887,115070.0,115060.0,0.22464235]
[1760311275356,0.00454163,115070.0,115060.0,0.22464235]
[1760311275557,0.00454163,115070.0,115060.0,0.26866621]
[1760311276763,0.17834887,115070.0,115060.0,0.26866621]
[1760311277327,0.00454163,115070.0,115060.0,0.26866621]
[1760311279081,0.00454163,115070.0,115060.0,0.35819573]
[1760311280696,0.00454163,115070.0,115060.0,0.75819573]
[1760311283160,0.17834887,115070.0,115060.0,0.18437338]
[1760311283361,0.17834887,115070.0,115060.0,0.35819573]
[1760311283721,0.51834887,115070.0,115060.0,0.05082]
[1760311283923,0.55541887,115070.0,115060.0,0.03127]
[1760311284303,0.51834887,115070.0,115060.0,0.03127]
[1760311285141,0.51834887,115070.0,115060.0,0.04885]
[1760311285570,0.17382235,115060.0,115050.0,0.04176]
[1760311285891,0.17382235,115060.0,115050.0,0.14610523]
[1760311286042,0.17382235,115060.0,115050.0,0.17422523]
[1760311286993,0.17382235,115060.0,115050.0,0.19180523]
[1760311293894,0.17382235,115060.0,115050.0,0.17422523]
[1760311294848,0.21089235,115060.0,115050.0,0.17422523]
[1760311296433,0.17382235,115060.0,115050.0,0.17422523]
[1760311297036,0.23765235,115060.0,115050.0,0.15940952]
[1760311297833,0.23765235,115060.0,115050.0,0.13128952]
[1760311298028,0.29664235,115060.0,115050.0,0.04176]
[1760311298988,0.51383746,115050.0,115040.0,0.01955]
[1760311299199,0.54059746,115050.0,115040.0,0.10922785]
[1760311299523,0.57766746,115050.0,115040.0,0.13734785]
[1760311299735,0.58220948,115050.0,115040.0,0.13734785]
[1760311300086,0.58320948,115050.0,115040.0,0.13734785]
[1760311301069,0.58420948,115050.0,115040.0,0.13734785]
[1760311301239,0.51937948,115050.0,115040.0,0.18829008]
[1760311301583,0.51937948,115050.0,115040.0,0.17071008]
[1760311301705,0.52037948,115050.0,115040.0,0.17071008]
[1760311301897,0.52037948,115050.0,115040.0,0.16971008]
[1760311302345,0.52037948,115050.0,115040.0,0.18629008]
[1760311302574,0.52037948,115050.0,115040.0,0.16971008]
[1760311304321,0.55744948,115050.0,115040.0,0.13634785]
[1760311304736,0.52037948,115050.0,115040.0,0.32678042]
[1760311304945,0.52037948,115050.0,115040.0,0.31020042]
[1760311305154,0.52037948,115050.0,115040.0,0.13634785]
[1760311305573,0.55744948,115050.0,115040.0,0.13634785]
[1760311307744,0.52037948,115050.0,115040.0,0.13634785]
[1760311308359,0.55846948,115050.0,115040.0,0.13634785]
[1760311309074,0.52037948,115050.0,115040.0,0.13634785]
[1760311309702,0.52037948,115050.0,115040.0,0.35625466]
[1760311309906,0.52037948,115050.0,115040.0,0.16785209]
[1760311310716,0.52037948,115050.0,115040.0,0.13634785]
[1760311313156,0.52037948,115050.0,115040.0,0.31020042]
[1760311313559,0.52037948,115050.0,115040.0,0.32475042]
[1760311315622,0.52037948,115050.0,115040.0,0.59465042]
[1760311315993,0.52037948,115050.0,115040.0,0.31020042]
[1760311316951,0.52037948,115050.0,115040.0,0.32475042]
[1760311317299,0.52037948,115050.0,115040.0,0.40208491]
[1760311317892,0.34654202,115050.0,115040.0,0.40208491]
[1760311318475,0.52037948,115050.0,115040.0,0.40208491]
[1760311318902,0.00654202,115050.0,115040.0,0.89227033]
[1760311319227,0.00654202,115050.0,115040.0,0.91727032]
[1760311319985,0.00554202,115050.0,115040.0,1.40745574]
[1760311320207,0.00554202,115050.0,115040.0,1.50745574]
[1760311320577,0.00017532,115050.0,115040.0,1.50745574]
[1760311320782,0.34454005,115090.0,115080.0,0.17379214]
[1760311320997,0.00454005,115090.0,115080.0,0.2609408]
[1760311321193,0.00454005,115090.0,115080.0,0.35047032]
[1760311321556,0.00908055,115090.0,115080.0,0.35047032]
[1760311322098,0.0045405,115090.0,115080.0,0.84065574]
[1760311322568,0.0055405,115090.0,115080.0,0.35047032]
[1760311322877,0.0055405,115090.0,115080.0,1.24065574]
[1760311323302,0.0065405,115090.0,115080.0,1.24065574]
[1760311323705,0.0055405,115090.0,115080.0,1.24065574]
[1760311323906,0.0045405,115090.0,115080.0,1.24065574]
[1760311324142,0.0045405,115090.0,115080.0,0.75047032]
[1760311324976,0.0045405,115090.0,115080.0,1.24065574]
[1760311325401,0.0045405,115090.0,115080.0,1.51055574]
[1760311326332,0.0045405,115090.0,115080.0,1.73084116]
[1760311326530,0.0045405,115090.0,115080.0,1.75584115]
[1760311327186,0.0045405,115090.0,115080.0,0.77547031]
[1760311327395,0.0045405,115090.0,115080.0,1.75584115]
[1760311328254,0.0045405,115090.0,115080.0,1.75684115]
[1760311328456,0.0045405,115090.0,115080.0,1.75784115]
[1760311329349,0.0045405,115090.0,115080.0,0.77747031]
[1760311329557,0.0045405,115090.0,115080.0,1.26765573]
[1760311329757,0.0045405,115090.0,115080.0,1.75784115]
[1760311330009,0.34055743,115120.0,115110.0,0.17374685]
[1760311330232,0.34070595,115120.0,115110.0,0.8299714]
[1760311330439,0.34070595,115120.0,115110.0,0.37762598]
[1760311330638,0.34524481,115120.0,115110.0,0.37762598]
[1760311331177,0.00524481,115120.0,115110.0,0.8678114]
[1760311331787,0.00524481,115120.0,115110.0,0.37762598]
[1760311333498,0.00524481,115120.0,115110.0,0.8678114]
[1760311334581,0.00524481,115120.0,115110.0,1.38299681]
[1760311335623,0.00524481,115120.0,115110.0,0.40262597]
[1760311335806,0.00524481,115120.0,115110.0,1.38299681]
[1760311336030,0.00524481,115120.0,115110.0,1.78299681]
[1760311337486,0.00524481,115120.0,115110.0,0.80262597]
[1760311337662,0.00524481,115120.0,115110.0,1.78299681]
[1760311338047,0.00524481,115120.0,115110.0,1.78399681]
[1760311338871,0.00524481,115120.0,115110.0,1.78499681]
[1760311341150,0.00524481,115120.0,115110.0,0.80462597]
[1760311341753,0.00524481,115120.0,115110.0,1.78499681]
[1760311343358,0.00524481,115120.0,115110.0,0.80462597]
[1760311343570,0.00524481,115120.0,115110.0,1.78499681]
[1760311345772,0.00524481,115120.0,115110.0,0.80462597]
[1760311345975,0.00524481,115120.0,115110.0,1.29481139]
[1760311346180,0.00524481,115120.0,115110.0,0.77962598]
[1760311346926,0.00524481,115120.0,115110.0,1.2698114]
[1760311347125,0.00524481,115120.0,115110.0,1.2688114]
[1760311348057,0.00524481,115120.0,115110.0,1.2678114]
[1760311348884,0.00070595,115120.0,115110.0,1.2678114]
[1760311349645,0.00070595,115120.0,115110.0,1.29281139]
[1760311350702,0.00070595,115120.0,115110.0,1.32341139]
[1760311352297,0.00070595,115120.0,115110.0,0.83322597]
[1760311352538,0.00070595,115120.0,115110.0,1.32341139]
[1760311354272,0.00070595,115120.0,115110.0,1.81359681]
[1760311354777,0.00070595,115120.0,115110.0,1.32341139]
[1760311355768,0.00070595,115120.0,115110.0,1.43276408]
[1760311359149,0.00524421,115120.0,115110.0,1.32341139]
[1760311360428,0.00524421,115120.0,115110.0,0.83322597]
[1760311360627,0.00524421,115120.0,115110.0,1.32341139]
[1760311360934,0.3402,115150.0,115140.0,0.17370158]
[1760311361139,0.34069497,115150.0,115140.0,0.21590683]
[1760311361569,0.34690488,115150.0,115140.0,0.22864683]
[1760311362376,0.34790488,115150.0,115140.0,0.22864683]
[1760311363500,0.34890488,115150.0,115140.0,0.22864683]
[1760311363915,0.00890488,115150.0,115140.0,0.31817635]
[1760311365112,0.00890488,115150.0,115140.0,0.75989635]
[1760311365503,0.00890488,115150.0,115140.0,1.25008177]
[1760311365705,0.02611514,115170.0,115160.0,0.17367141]
[1760311365951,0.0002,115180.0,115170.0,0.17365633]
[1760311366137,0.0002,115180.0,115170.0,0.29143585]
[1760311366138,0.00032908,115180.0,115170.0,0.29143585]
[1760311366498,0.00032908,115180.0,115170.0,0.78162127]
[1760311367424,0.0002,115190.0,115180.0,0.17364125]
[1760311367630,0.0002,115190.0,115180.0,0.77509619]
[1760311367834,0.0002,115190.0,115180.0,0.86983484]
[1760311368661,0.0002,115190.0,115180.0,1.26983484]
[1760311369063,0.0002,115190.0,115180.0,1.37923195]
[1760311369477,0.0002,115190.0,115180.0,1.26983484]
[1760311369697,0.0002,115190.0,115180.0,1.27083484]
[1760311370381,0.0002,115190.0,115180.0,0.78064942]
[1760311371088,0.0002,115190.0,115180.0,0.77964942]
[1760311371618,0.0002,115190.0,115180.0,1.26983484]
[1760311371942,0.00242799,115190.0,115180.0,1.26983484]
[1760311372345,0.00242799,115190.0,115180.0,0.77964942]
[1760311372808,0.00242799,115190.0,115180.0,1.27083484]
[1760311374979,0.00473568,115210.0,115200.0,0.17361111]
[1760311375208,0.00473568,115210.0,115200.0,0.7880485]
[1760311375401,0.00473568,115210.0,115200.0,0.8162985]
[1760311375827,0.0002,115210.0,115200.0,0.8162985]
[1760311376042,0.0002,115210.0,115200.0,1.2162985]
[1760311377194,0.0002,115210.0,115200.0,0.72611308]
[1760311377434,0.0002,115210.0,115200.0,1.2162985]
[1760311377753,0.0002,115210.0,115200.0,1.16042425]
[1760311378117,0.0002,115210.0,115200.0,0.72611308]
[1760311380643,0.0013136,115210.0,115200.0,0.72611308]
[1760311381264,0.0013136,115210.0,115200.0,0.76042425]
[1760311381842,0.0013136,115210.0,115200.0,1.16042425]
[1760311382673,1e-08,115210.0,115200.0,1.59473542]
[1760311382877,1e-08,115210.0,115200.0,1.18542424]
[1760311383717,1e-08,115210.0,115200.0,1.61973541]
[1760311384296,1e-08,115210.0,115200.0,2.05973541]
[1760311385031,1e-08,115210.0,115200.0,2.06143315]
[1760311385622,1e-08,115210.0,115200.0,1.62712198]
[1760311386816,1e-08,115210.0,115200.0,1.52912198]
[1760311387003,1e-08,115210.0,115200.0,1.62912198]
[1760311390338,1e-08,115210.0,115200.0,1.73851909]
[1760311390790,1e-08,115210.0,115200.0,1.30420792]
[1760311391001,1e-08,115210.0,115200.0,1.62912198]
[1760311391549,1e-08,115210.0,115200.0,1.44601082]
[1760311391767,1e-08,115210.0,115200.0,0.32981082]
[1760311392423,1e-08,115210.0,115200.0,0.72981082]
[1760311392649,1e-08,115210.0,115200.0,0.72781082]
[1760311392875,1e-08,115210.0,115200.0,0.72681082]
[1760311393078,1e-08,115210.0,115200.0,0.72781082]
[1760311394047,1e-08,115210.0,115200.0,0.72681082]
[1760311394250,1e-08,115210.0,115200.0,0.72781082]
[1760311394456,1e-08,115210.0,115200.0,0.83720793]
[1760311395232,1e-08,115210.0,115200.0,0.72781082]
[1760311395693,1e-08,115210.0,115200.0,0.83720793]
[1760311397223,1e-08,115210.0,115200.0,1.2715191]
[1760311397663,0.0002,115230.0,115220.0,0.17358097]
[1760311397920,0.00034838,115230.0,115220.0,0.82474379]
[1760311398157,0.00034838,115230.0,115220.0,0.84830379]
[1760311398375,0.0002,115240.0,115230.0,0.60787708]
[1760311398613,0.0002,115240.0,115230.0,0.85729632]
[1760311398845,0.0002,115240.0,115230.0,0.87179632]
[1760311399055,1e-08,115250.0,115240.0,0.60786202]
[1760311399267,0.0002,115270.0,115260.0,0.17352073]
[1760311399480,0.0002,115270.0,115260.0,0.28661025]
[1760311399481,0.00069449,115270.0,115260.0,0.28661025]
[1760311399918,0.00522775,115270.0,115260.0,0.69567025]
[1760311401091,0.00522775,115270.0,115260.0,0.29567025]
[1760311401292,0.00522775,115270.0,115260.0,0.34258959]
[1760311403204,0.00522775,115270.0,115260.0,0.33352959]
[1760311403864,0.00522775,115270.0,115260.0,0.34258959]
[1760311404653,0.0002,115290.0,115280.0,0.17349063]
[1760311404886,0.00034831,115290.0,115280.0,0.26302015]
[1760311405201,0.00034831,115290.0,115280.0,0.33113746]
[1760311405349,0.00473233,115300.0,115290.0,0.17347558]
[1760311405586,0.00473233,115300.0,115290.0,0.2720651]
[1760311405786,0.00473233,115300.0,115290.0,0.39571482]
[1760311405991,0.0002,115300.0,115290.0,0.39571482]
[1760311406185,1e-08,115300.0,115290.0,0.42543168]
[1760311406392,1e-08,115300.0,115290.0,1.06480566]
[1760311406761,1e-08,115310.0,115300.0,0.17346053]
[1760311406918,1e-08,115310.0,115300.0,0.68111005]
[1760311407103,1e-08,115310.0,115300.0,0.69561005]
[1760311407281,1e-08,115310.0,115300.0,0.73034455]
[1760311411374,1e-08,115310.0,115300.0,0.33034455]
[1760311411766,0.00556273,115310.0,115300.0,0.33034455]
[1760311415083,0.00556273,115310.0,115300.0,0.32974037]
[1760311415401,0.00556273,115310.0,115300.0,0.72974037]
[1760311416642,0.00556273,115310.0,115300.0,0.32974037]
[1760311417368,0.00556273,115310.0,115300.0,0.72974037]
[1760311417764,0.00556273,115310.0,115300.0,0.32974037]
[1760311418044,0.00556273,115310.0,115300.0,0.37142037]
[1760311421723,0.00556273,115310.0,115300.0,0.77142037]
[1760311424618,0.00556273,115310.0,115300.0,0.37142037]
[1760311425166,0.00556273,115310.0,115300.0,0.77142037]
[1760311428224,0.00556273,115310.0,115300.0,0.37142037]
[1760311428627,0.00556273,115310.0,115300.0,0.77142037]
[1760311431752,0.00556273,115310.0,115300.0,0.37142037]
[1760311432353,0.00556273,115310.0,115300.0,0.77142037]
[1760311433409,0.00556273,115310.0,115300.0,0.37142037]
[1760311433952,0.00556273,115310.0,115300.0,0.77142037]
[1760311434372,0.00556273,115310.0,115300.0,0.37142037]
[1760311434752,0.00556273,115310.0,115300.0,0.48057009]
[1760311437060,0.00556273,115310.0,115300.0,0.37142037]
[1760311438807,0.00556273,115310.0,115300.0,0.77142037]
[1760311441902,0.00556273,115310.0,115300.0,0.37142037]
[1760311442311,0.00556273,115310.0,115300.0,0.77142037]
[1760311442874,0.00556273,115310.0,115300.0,1.25923582]
[1760311444095,0.00473133,115320.0,115310.0,0.43778276]
[1760311444385,0.00473133,115320.0,115310.0,0.58152162]
[1760311444583,0.00473133,115320.0,115310.0,0.59318162]
[1760311446497,0.00473133,115320.0,115310.0,0.99318162]
[1760311449810,0.00528731,115320.0,115310.0,0.99318162]
[1760311450041,0.0002,115330.0,115320.0,0.43248041]
[1760311450255,0.00034823,115330.0,115320.0,0.57385724]
[1760311450474,0.00034823,115330.0,115320.0,1.07333269]
[1760311450745,0.0048786,115330.0,115320.0,1.07333269]
[1760311450990,0.00543451,115330.0,115320.0,1.47333269]
[1760311451221,0.00543451,115330.0,115320.0,1.21428273]
[1760311451410,0.0002,115340.0,115330.0,0.66123086]
[1760311451548,0.0002,115340.0,115330.0,0.29995179]
[1760311451747,0.0002,115340.0,115330.0,0.31161179]
[1760311451955,0.0002,115340.0,115330.0,0.79942724]
[1760311452157,0.0002,115340.0,115330.0,1.19942724]
[1760311452461,0.0002,115340.0,115330.0,0.71161179]
[1760311452868,0.0002,115340.0,115330.0,1.19942724]
[1760311453071,0.0002,115340.0,115330.0,0.71161179]
[1760311453509,0.0002,115340.0,115330.0,1.19942724]
[1760311454587,0.0002,115340.0,115330.0,1.20042724]
[1760311454792,0.0002,115340.0,115330.0,1.20142724]
[1760311457185,0.00075584,115340.0,115330.0,1.20142724]
[1760311460081,0.00075584,115340.0,115330.0,1.20112527]
[1760311460410,0.00075584,115340.0,115330.0,1.20012527]
[1760311461035,0.00075584,115340.0,115330.0,1.45917523]
[1760311461417,0.0052854,115340.0,115330.0,1.45917523]
[1760311461680,0.0052854,115340.0,115330.0,1.46017523]
[1760311461895,1e-08,115340.0,115330.0,1.46017523]
[1760311462137,0.0002,115350.0,115340.0,0.17340038]
[1760311462138,1e-08,115350.0,115340.0,0.17340038]
[1760311462303,1e-08,115350.0,115340.0,1.6244153]
[1760311462536,1e-08,115350.0,115340.0,1.6333153]
[1760311462739,0.09650707,115410.0,115400.0,0.17291237]
[1760311462860,0.0001482,115410.0,115400.0,0.18737237]
[1760311463055,0.0001482,115410.0,115400.0,0.19293237]
[1760311463262,0.00467621,115410.0,115400.0,0.23372213]
[1760311464138,0.00567621,115410.0,115400.0,0.23372213]
[1760311464352,0.00567621,115410.0,115400.0,0.8110671]
[1760311464474,0.0011482,115410.0,115400.0,0.8110671]
[1760311464676,0.0001482,115410.0,115400.0,0.8110671]
[1760311465028,0.0001482,115410.0,115400.0,0.32325165]
[1760311465373,0.0614082,115410.0,115400.0,0.21965998]
[1760311465591,0.0614082,115410.0,115400.0,0.22855998]
[1760311465592,0.07559081,115410.0,115400.0,0.22855998]
[1760311466001,0.01433081,115410.0,115400.0,0.22855998]
[1760311466224,0.0001482,115410.0,115400.0,0.22855998]
[1760311466717,0.0001482,115410.0,115400.0,0.3236495]
[1760311467349,0.0001482,115410.0,115400.0,0.7236495]
[1760311467556,0.0001482,115410.0,115400.0,1.21146495]
[1760311469616,0.0001482,115410.0,115400.0,0.7236495]
[1760311469960,0.00403653,115410.0,115400.0,0.7236495]
[1760311472701,0.00403653,115410.0,115400.0,0.3236495]
[1760311473365,0.00403653,115410.0,115400.0,0.7236495]
[1760311475663,0.00403653,115410.0,115400.0,1.18473687]
[1760311481222,0.00472747,115430.0,115420.0,0.17328019]
[1760311481422,0.00522138,115430.0,115420.0,0.3134966]
[1760311481744,0.00522138,115430.0,115420.0,0.3279566]
[1760311482139,0.00522138,115430.0,115420.0,0.7279566]
[1760311482340,0.00522138,115430.0,115420.0,1.18904397]
[1760311482642,1e-08,115430.0,115420.0,1.18904397]
[1760311482859,0.00452599,115430.0,115420.0,1.18904397]
[1760311484696,0.00452599,115430.0,115420.0,0.7279566]
[1760311484885,1e-08,115430.0,115420.0,1.18904397]
[1760311485083,0.00453253,115470.0,115420.0,1.18904397]
[1760311485340,0.00468067,115470.0,115460.0,0.17878016]
[1760311485537,0.00468067,115470.0,115460.0,0.20849702]
[1760311485727,0.00468067,115470.0,115460.0,0.21858702]
[1760311485890,0.00920621,115470.0,115460.0,0.21858702]
[1760311486325,0.01020621,115470.0,115460.0,0.21858702]
[1760311486644,0.01120621,115470.0,115460.0,0.21858702]
[1760311486789,0.01020621,115470.0,115460.0,0.21858702]
[1760311486995,0.01120621,115470.0,115460.0,0.21858702]
[1760311487409,0.01120621,115470.0,115460.0,0.21470702]
[1760311488514,0.01120621,115470.0,115460.0,0.21855702]
[1760311490221,0.01120621,115470.0,115460.0,0.21795361]
[1760311490809,0.01120621,115470.0,115460.0,0.21410361]
[1760311490993,0.04338621,115470.0,115460.0,0.21410361]
[1760311491177,0.05756882,115470.0,115460.0,0.21410361]
[1760311491366,0.02538882,115470.0,115460.0,0.21410361]
[1760311491992,0.06089893,115470.0,115460.0,0.21410361]
[1760311492718,0.06089893,115470.0,115460.0,0.25570361]
[1760311493546,0.08675893,115470.0,115460.0,0.25570361]
[1760311495555,0.05457893,115470.0,115460.0,0.25570361]
[1760311497634,0.02871893,115470.0,115460.0,0.25570361]
[1760311500259,0.01453632,115470.0,115460.0,0.34908313]
[1760311500468,0.01453632,115470.0,115460.0,0.781601]
[1760311501052,0.01353632,115470.0,115460.0,0.89066662]
[1760311501255,0.00900379,115470.0,115460.0,0.89066662]
[1760311501597,0.00800379,115470.0,115460.0,0.89066662]
[1760311501745,0.00800379,115470.0,115460.0,0.89166662]
[1760311502354,1e-08,115470.0,115460.0,0.89266662]
[1760311502591,1e-08,115470.0,115460.0,1.183601]
[1760311502853,1e-08,115470.0,115460.0,1.523601]
[1760311503688,1e-08,115470.0,115460.0,1.09108313]
[1760311503914,1e-08,115470.0,115460.0,1.522601]
[1760311504123,1e-08,115470.0,115460.0,1.523601]
[1760311504543,1e-08,115470.0,115460.0,1.522601]
[1760311504748,1e-08,115470.0,115460.0,1.523601]
[1760311506646,1e-08,115470.0,115460.0,1.09108313]
[1760311506846,1e-08,115470.0,115460.0,1.523601]
[1760311510325,0.00905495,115490.0,115460.0,1.523601]
[1760311510326,0.00905495,115490.0,115480.0,0.17319016]
[1760311510526,0.00905495,115490.0,115480.0,0.29735794]
[1760311510788,0.00905495,115490.0,115480.0,0.30735794]
[1760311510983,0.00905495,115490.0,115480.0,0.70735794]
[1760311511201,0.04123495,115490.0,115480.0,0.30350794]
[1760311511451,0.02323756,115490.0,115480.0,0.4122372]
[1760311512440,0.02323756,115490.0,115480.0,0.30350794]
[1760311512850,0.00905495,115490.0,115480.0,0.4160872]
[1760311512979,0.04123495,115490.0,115480.0,0.4122372]
[1760311514033,0.00905495,115490.0,115480.0,0.4122372]
[1760311515001,0.00905495,115490.0,115480.0,0.4160872]
[1760311515811,0.01016451,115490.0,115480.0,0.4160872]
[1760311517514,0.02269655,115520.0,115510.0,0.17314518]
[1760311517727,0.02269655,115520.0,115510.0,0.21128444]
[1760311517728,0.01893094,115520.0,115510.0,0.21128444]
[1760311517928,0.37692833,115520.0,115510.0,0.21128444]
[1760311518125,0.38145196,115520.0,115510.0,0.21128444]
[1760311518368,0.34927196,115520.0,115510.0,0.21128444]
[1760311519613,0.45663196,115520.0,115510.0,0.20777444]
[1760311519797,0.40849196,115520.0,115510.0,0.21128444]
[1760311522705,0.40849196,115520.0,115510.0,0.25288444]
[1760311526353,0.62976215,115520.0,115510.0,0.24937444]
[1760311526576,0.45663196,115520.0,115510.0,0.24937444]
[1760311527704,0.40849196,115520.0,115510.0,0.25288444]
[1760311528039,0.34927196,115520.0,115510.0,0.25288444]
[1760311528191,0.35093572,115520.0,115510.0,0.25288444]
[1760311528598,0.45829572,115520.0,115510.0,0.25288444]
[1760311528780,0.41015572,115520.0,115510.0,0.25288444]
[1760311530190,0.45829572,115520.0,115510.0,0.24937444]
[1760311530638,0.41015572,115520.0,115510.0,0.25288444]
[1760311531103,0.35093572,115520.0,115510.0,0.25508444]
[1760311531309,0.35093572,115520.0,115510.0,0.25288444]
[1760311531907,0.38545572,115520.0,115510.0,0.25288444]
[1760311532312,0.45829572,115520.0,115510.0,0.24937444]
[1760311532742,0.45829572,115520.0,115510.0,0.25288444]
[1760311532929,0.41015572,115520.0,115510.0,0.25288444]
[1760311533876,0.58328591,115520.0,115510.0,0.07622926]
[1760311534098,0.45829572,115520.0,115510.0,0.24937444]
[1760311534403,0.76157781,115520.0,115510.0,0.0416]
[1760311534609,0.78398476,115520.0,115510.0,0.0416]
[1760311534783,0.81002554,115520.0,115510.0,0.0416]
[1760311535150,0.71002554,115520.0,115510.0,0.0416]
[1760311535355,0.81002554,115520.0,115510.0,0.0416]
[1760311535898,0.78761859,115520.0,115510.0,0.0416]
[1760311536344,0.78961859,115520.0,115510.0,0.0416]
[1760311536622,0.78761859,115520.0,115510.0,0.0416]
[1760311537002,0.78961859,115520.0,115510.0,0.0416]
[1760311537328,0.79161859,115520.0,115510.0,0.0416]
[1760311537752,0.81402554,115520.0,115510.0,0.0416]
[1760311537971,0.83021615,115520.0,115510.0,0.0416]
[1760311538384,0.73021615,115520.0,115510.0,0.0416]
[1760311538659,0.81402554,115520.0,115510.0,0.0416]
[1760311539883,0.83021326,115520.0,115510.0,0.0416]
[1760311540211,0.17317516,115490.0,115480.0,0.03463826]
[1760311540468,0.19787516,115490.0,115480.0,0.03463826]
[1760311540605,0.34,115480.0,115470.0,0.28406956]
[1760311540806,0.39922,115480.0,115470.0,0.28406956]
[1760311541011,0.44736,115480.0,115470.0,0.28406956]
[1760311541271,0.44736,115480.0,115470.0,0.21480249]
[1760311541442,0.44736,115480.0,115470.0,0.26825513]
[1760311543145,0.39922,115480.0,115470.0,0.27176513]
[1760311543275,0.44736,115480.0,115470.0,0.26825513]
[1760311544711,0.39922,115480.0,115470.0,0.26923513]
[1760311544903,0.10761,115480.0,115470.0,0.26825513]
[1760311545103,0.01418261,115480.0,115470.0,0.26985513]
[1760311545302,0.03977261,115490.0,115480.0,0.17319016]
[1760311545549,0.24689777,115490.0,115480.0,0.21847469]
[1760311545753,0.23271516,115490.0,115480.0,0.21847469]
[1760311545973,0.23271516,115490.0,115480.0,0.04430453]
[1760311546246,0.28110516,115490.0,115480.0,0.04430453]
[1760311546453,0.34,115480.0,115470.0,0.21480249]
[1760311546661,0.34,115480.0,115470.0,0.21560249]
[1760311547675,0.65165794,115500.0,115480.0,0.17319016]
[1760311547883,0.65165794,115500.0,115490.0,0.17317516]
[1760311548021,0.02659787,115500.0,115490.0,0.17397516]
[1760311548229,0.00055468,115500.0,115490.0,0.20924169]
[1760311548507,0.00507892,115500.0,115490.0,0.20924169]
[1760311548643,0.00507892,115500.0,115490.0,0.29877121]
[1760311549107,0.00055468,115500.0,115490.0,0.29877121]
[1760311551178,0.00055468,115500.0,115490.0,0.73128908]
[1760311552919,0.00055468,115500.0,115490.0,0.29877121]
[1760311553157,0.00055468,115500.0,115490.0,0.73128908]
[1760311554578,0.00055468,115500.0,115490.0,1.13128908]
[1760311555366,9.823e-05,115500.0,115490.0,1.13128908]
[1760311559130,0.00462182,115500.0,115490.0,1.13128908]
[1760311559691,0.00462182,115500.0,115490.0,1.18489701]
[1760311559913,0.00460027,115520.0,115510.0,0.17314518]
[1760311560116,0.00474836,115520.0,115510.0,0.78342977]
[1760311560326,0.00927166,115520.0,115510.0,0.78472977]
[1760311560543,0.00927166,115520.0,115510.0,0.29860397]
[1760311560761,0.00927166,115520.0,115510.0,0.78472977]
[1760311561193,0.00474139,115520.0,115510.0,0.78472977]
[1760311564344,0.00474139,115520.0,115510.0,1.18472977]
[1760311565673,0.00585052,115520.0,115510.0,1.18472977]
[1760311568493,0.00098777,115520.0,115510.0,1.18472977]
[1760311569590,0.00098777,115520.0,115510.0,0.69860397]
[1760311569792,0.00098777,115520.0,115510.0,1.18472977]